[Event "Turkish Women-ch Arzum 2022"]
[Site "Ayvalik"]
[Date "2022.03.08"]
[Round "5.13"]
[White "Demirtas, Hafize"]
[Black "Karatiken, Seray"]
[Result "1/2-1/2"]
[ECO "B52"]
[WhiteElo "1779"]
[BlackElo "1717"]
[Annotator "NA RC"]
[PlyCount "222"]
[EventDate "2022.03.04"]
[EventType "swiss"]
[EventCountry "TUR"]
[SourceTitle "playchess.com"]
[Source "ChessBase"]
[SourceQuality "1"]
[TimeControl "5400+30"]

1. e4 {[%emt 0:01:00]} c5 {[%emt 0:01:00]} 2. Nf3 {[%emt 0:00:30]} d6 {[%emt 0:00:30]} 3. Bb5+ {[%emt 0:00:30]} Bd7 {[%emt 0:00:30]} 4. Bxd7+ {[%emt 0:00:00]} Qxd7 {[%emt 0:00:00]} 5. O-O {[%emt 0:00:00]} Nc6 {[%emt 0:00:00]} 6. c3 {[%emt 0:00:00]} d5 {[%emt 0:00:00]} 7. exd5 {[%emt 0:00:00]} Qxd5 {[%emt 0:00:00]} 8. d4 {[%emt 0:00:30]} e6 {[%emt 0:00:00]} 9. Be3 {[%emt 0:00:00]} cxd4 {[%emt 0:00:00]} 10. cxd4 {[%emt 0:00:00]} Nf6 {[%emt 0:01:30]} 11. Nc3 {[%emt 0:00:30]} Qa5 {[%emt 0:00:30]} 12. Qb3 {[%emt 0:07:30]} Qb4 {[%emt 0:14:30]} 13. Qc2 {[%emt 0:00:30]} Bd6 {[%emt 0:02:30]} 14. Bg5 {[%emt 0:03:30]} Nxd4 {[%emt 0:14:30]} 15. Nxd4 {[%emt 0:01:30]} Qxd4 {[%emt 0:00:00]} 16. Nb5 {[%emt 0:21:30]} Qe5 {[%emt 0:13:00]} 17. Nxd6+ {[%emt 0:00:30]} Qxd6 {[%emt 0:00:30]} 18. Bxf6 {[%emt 0:00:30]} gxf6 {[%emt 0:00:00]} 19. Rfd1 {[%emt 0:01:30]} Qc6 {[%emt 0:04:00]} 20. Qxc6+ {[%emt 0:05:30]} bxc6 {[%emt 0:00:30]} 21. Rac1 {[%emt 0:00:30]} Rc8 {[%emt 0:00:30]} 22. Rd6 {[%emt 0:01:30]} c5 {[%emt 0:01:30]} 23. b4 {[%emt 0:02:30]} Ke7 {[%emt 0:03:30]} 24. Ra6 {[%emt 0:00:30]} cxb4 {[%emt 0:10:30]} 25. Rxa7+ {[%emt 0:00:30]} Kd6 {[%emt 0:00:30]} 26. Rd1+ {[%emt 0:00:00]} Ke5 {[%emt 0:01:30]} 27. Rxf7 {[%emt 0:09:00]} Ra8 {[%emt 0:03:30]} 28. Rd2 {[%emt 0:07:30]} b3 {[%emt 0:09:43]} 29. f4+ {[%emt 0:00:00]} Kxf4 {[%emt 0:01:10]} 30. axb3 {[%emt 0:00:00]} Ke3 {[%emt 0:02:14]} 31. Rd1 {[%emt 0:00:30]} Ke2 {[%emt 0:00:32]} 32. Rb1 {[%emt 0:01:30]} f5 {[%emt 0:00:09]} 33. Rf6 {[%emt 0:03:30]} Ra6 {[%emt 0:01:18]} 34. Rh6 {[%emt 0:02:30]} Rb8 {[%emt 0:01:43]} 35. Rh3 {[%emt 0:01:30]} Rd6 {[%emt 0:05:57]} 36. Rb2+ {[%emt 0:05:30]} Rd2 {[%emt 0:00:04]} 37. Rxd2+ {[%emt 0:00:30]} Kxd2 {[%emt 0:00:02]} 38. Rxh7 {[%emt 0:02:30]} Rxb3 {[%emt 0:02:34]} 39. Kf2 {[%emt 0:00:30]} Rb4 {[%emt 0:02:34]} 40. Rd7+ {[%emt 0:01:30]} Kc3 {[%emt 0:00:10]} 41. Ke3 {[%emt 0:02:30]} Re4+ {[%emt 0:00:51]} 42. Kf3 {[%emt 0:00:30]} Rd4 {[%emt 0:01:29]} 43. Rc7+ {[%emt 0:03:55]} Kd3 {[%emt 0:00:21]} 44. Ra7 {[%emt 0:03:10]} Rh4 {[%emt 0:01:28]} 45. Ra3+ {[%emt 0:01:35]} Kd2 {[%emt 0:00:15]} 46. g3 {[%emt 0:00:05]} Rc4 {[%emt 0:00:55]} 47. Re3 {[%emt 0:03:12]} Rc6 {[%emt 0:02:34]} 48. h4 {[%emt 0:00:49]} Rd6 {[%emt 0:01:50]} 49. Kf2 {[%emt 0:01:52]} Rc6 {[%emt 0:00:45]} 50. Re5 {[%emt 0:00:49]} Kd3 {[%emt 0:00:06]} 51. Kf3 {[%emt 0:00:33]} Kd4 {[%emt 0:00:30]} 52. Kf4 {[%emt 0:00:30]} Rc1 {[%emt 0:01:33]} 53. Rxe6 {[%emt 0:03:14]} Rf1+ {[%emt 0:00:30]} 54. Kg5 {[%emt 0:00:00]} Rf3 {[%emt 0:00:01]} 55. h5 {[%emt 0:02:53]} Rxg3+ {[%emt 0:00:33]} 56. Kxf5 {[%emt 0:00:02]} Rh3 {[%emt 0:01:17]} 57. Kg6 {[%emt 0:00:30]} Kd5 {[%emt 0:00:30]} 58. Re1 {[%emt 0:00:30]} Rg3+ {[%emt 0:00:00]} 59. Kh7 {[%emt 0:00:00]} Kd6 {[%emt 0:00:03]} 60. Kh6 {[%emt 0:00:50]} Rg4 {[%emt 0:00:54]} 61. Re2 {[%emt 0:00:30]} Rg3 {[%emt 0:00:30]} 62. Kh7 {[%emt 0:00:00]} Kd7 {[%emt 0:00:00]} 63. h6 {[%emt 0:00:05]} Rg5 {[%emt 0:00:13]} 64. Kh8 {[%emt 0:00:34]} Rg4 {[%emt 0:00:08]} 65. Re3 {[%emt 0:00:31]} Rg5 {[%emt 0:00:13]} 66. Re4 {[%emt 0:00:09]} Rg3 {[%emt 0:00:32]} 67. Ra4 {[%emt 0:01:45]} Ke7 {[%emt 0:01:21]} 68. Ra7+ {[%emt 0:00:30]} Kf8 {[%emt 0:00:00]} 69. Rg7 {[%emt 0:00:00]} Rh3 {[%emt 0:01:03]} 70. Kh7 {[%emt 0:00:16]} Rh1 {[%emt 0:00:00]} 71. Rg5 {[%emt 0:00:06]} Rf1 {[%emt 0:00:41]} 72. Rg8+ {[%emt 0:00:40]} Kf7 {[%emt 0:00:05]} 73. Ra8 {[%emt 0:00:20]} Rg1 {[%emt 0:00:54]} 74. Ra6 {[%emt 0:00:35]} Rg3 {[%emt 0:00:05]} 75. Ra7+ {[%emt 0:00:06]} Kf8 {[%emt 0:00:33]} 76. Rg7 {[%emt 0:00:30]} Rh3 {[%emt 0:00:30]} 77. Rg5 {[%emt 0:00:00]} Kf7 {[%emt 0:00:06]} 78. Rf5+ {[%emt 0:00:00]} Ke6 {[%emt 0:00:02]} 79. Rf4 {[%emt 0:00:50]} Rg3 {[%emt 0:00:30]} 80. Rf8 {[%emt 0:00:00]} Ke7 {[%emt 0:00:31]} 81. Rg8 {[%emt 0:00:56]} Rh3 {[%emt 0:00:11]} 82. Rg4 {[%emt 0:00:31]} Kf7 {[%emt 0:00:38]} 83. Rf4+ {[%emt 0:00:27]} Ke7 {[%emt 0:00:10]} 84. Kg6 {[%emt 0:00:41]} Rg3+ {[%emt 0:00:12]} 85. Kh5 {[%emt 0:00:02]} Rh3+ {[%emt 0:01:05]} 86. Kg5 {[%emt 0:00:24]} Rg3+ {[%emt 0:00:15]} 87. Kh4 {[%emt 0:00:22]} Rg1 {[%emt 0:00:24]} 88. Rf3 {[%emt 0:00:34]} Rh1+ {[%emt 0:00:30]} 89. Kg5 {[%emt 0:00:00]} Rg1+ {[%emt 0:00:00]} 90. Kh5 {[%emt 0:00:20]} Rh1+ {[%emt 0:00:26]} 91. Kg6 {[%emt 0:00:30]} Rg1+ {[%emt 0:00:00]} 92. Kh7 {[%emt 0:01:04]} Rg2 {[%emt 0:00:00]} 93. Kh8 {[%emt 0:00:07]} Rg1 {[%emt 0:01:31]} 94. Rb3 {[%emt 0:01:21]} Kf7 {[%emt 0:01:22]} 95. Rb7+ {[%emt 0:00:10]} Kf8 {[%emt 0:00:28]} 96. Kh7 {[%emt 0:00:30]} Rg2 {[%emt 0:00:00]} 97. Rc7 {[%emt 0:00:12]} Rg1 {[%emt 0:00:11]} 98. Rg7 {[%emt 0:05:02]} Rh1 {[%emt 0:00:30]} 99. Rg4 {[%emt 0:00:00]} Kf7 {[%emt 0:00:14]} 100. Rf4+ {[%emt 0:00:00]} Ke7 {[%emt 0:00:34]} 101. Kg7 {[%emt 0:00:07]} Rg1+ {[%emt 0:00:32]} 102. Kh8 {[%emt 0:00:30]} Rg2 {[%emt 0:00:00]} 103. Ra4 {[%emt 0:00:00]} Kf8 {[%emt 0:01:12]} 104. Ra8+ {[%emt 0:00:07]} Kf7 {[%emt 0:00:30]} 105. h7 {[%emt 0:00:00]} Rg3 {[%emt 0:00:00]} 106. Rg8 {[%emt 0:00:00]} Rf3 {[%emt 0:00:40]} 107. Rb8 {[%emt 0:00:57]} Rf2 {[%emt 0:00:07]} 108. Rb7+ {[%emt 0:00:31]} Kf8 {[%emt 0:00:30]} 109. Rg7 {[%emt 0:00:00]} Rf3 {[%emt 0:00:00]} 110. Rg5 {[%emt 0:00:24]} Rf2 {[%emt 0:00:17]} 111. Rf5+ {[%emt 0:00:30]} Rxf5 {[%emt 0:00:30]} 1/2-1/2

[Event "Turkish Women-ch Arzum 2022"]
[Site "Ayvalik"]
[Date "2022.03.08"]
[Round "5.14"]
[White "Can, Isil"]
[Black "Kucuk, Aybike"]
[Result "1/2-1/2"]
[ECO "B41"]
[WhiteElo "1875"]
[BlackElo "1439"]
[Annotator "NA"]
[PlyCount "110"]
[EventDate "2022.03.04"]
[EventType "swiss"]
[EventCountry "TUR"]
[SourceTitle "playchess.com"]
[Source "ChessBase"]
[SourceQuality "1"]
[TimeControl "5400+30"]

{[%evp 8,100,14,32767,32767,32767,32767,37,64,32767,32767,47,77,78,75,58,66,45,45,34,50,-40,23,-89,-7,-14,18,32767,32767,32767,3,0,59,49,94,28,35,38,45,55,41,32767,32767,32767,32767,8,18,15,104,117,125,126,166,127,127,148,147,32767,32767,177,289,288,32767,32767,210,32767,32767,167,175,170,204,32767,32767,32767,32767,32767,32767,32767,32767,32767,32767,32767,32767,32767,32767,32767,32767,32767,32767,-21,-59,32767,32767,32767,-15]} 1. e4 {[%emt 0:01:00]} c5 {[%emt 0:01:00]} 2. Nf3 {[%emt 0:00:30]} e6 {[%emt 0:00:30]} 3. d4 {[%emt 0:00:30]} cxd4 {[%emt 0:00:30]} 4. Nxd4 {[%emt 0:00:00]} a6 {[%emt 0:00:00]} 5. c4 {[%emt 0:00:00]} Nf6 {[%emt 0:00:00]} 6. Nc3 {[%emt 0:00:30]} Qc7 {[%emt 0:00:00]} 7. Be2 {[%emt 0:06:30]} Be7 {[%emt 0:01:00]} 8. f4 {[%emt 0:03:30]} d6 {[%emt 0:02:30]} 9. Be3 {[%emt 0:03:30]} b6 {[%emt 0:08:30]} 10. O-O {[%emt 0:00:30]} Bb7 {[%emt 0:01:30]} 11. Qd3 {[%emt 0:00:30]} O-O {[%emt 0:00:30]} 12. a3 {[%emt 0:02:30]} Nc6 {[%emt 0:05:30]} 13. b3 {[%emt 0:07:30]} Rfd8 {[%emt 0:07:30]} 14. Bf3 {[%emt 0:04:30] [#]} (14. Rac1 $14) 14... Rac8 {[%emt 0:03:30]} ({Black should play} 14... Ne5 $1 15. Qe2 (15. fxe5 dxe5 16. Nxe6 fxe6 $15) (15. Qd2 Nfg4) 15... Nxf3+ 16. gxf3 b5) 15. Nce2 {[%emt 0:09:30] [#]} (15. Nde2 $14 {stays ahead.}) 15... Nd7 {[%emt 0:11:30]} (15... Ne5 $1 $17 {[%cal Re5d3]} 16. Qb1 (16. fxe5 $2 dxe5 17. Bg5 Rd7 $17) 16... Nxf3+ 17. gxf3 g6) 16. Rac1 {[%emt 0:02:30]} Qb8 {[%emt 0:02:30]} 17. b4 {[%emt 0:03:30]} Qa8 {[%emt 0:02:30]} 18. Rfd1 {[%emt 0:06:30]} Nxd4 {[%emt 0:12:30]} 19. Bxd4 {[%emt 0:00:30] [#]} Nc5 {[%emt 0:06:30]} 20. Qc3 $1 {[%emt 0:16:30]} ({Worse is} 20. bxc5 dxc5 21. Rb1 Qa7 $17) 20... Na4 {[%emt 0:10:30]} (20... Nxe4 $14 {should be considered.} 21. Bxe4 Bxe4) 21. Qe3 {[%emt 0:02:30]} (21. Qb3 $5 {[%cal Rb3a4]} b5 22. Ng3 $14) 21... b5 {[%emt 0:01:30]} 22. cxb5 {[%emt 0:02:30]} axb5 {[%emt 0:00:00]} 23. Ng3 {[%emt 0:02:30]} Rxc1 $1 {[%emt 0:02:23]} 24. Rxc1 {[%emt 0:00:30]} Rc8 {[%emt 0:01:07]} 25. Be2 {[%emt 0:02:30]} Rxc1+ {[%emt 0:05:58]} 26. Qxc1 {[%emt 0:01:30]} Bc6 {[%emt 0:00:10]} 27. Qe3 {[%emt 0:04:04]} f6 {[%emt 0:04:21]} (27... Qd8 $11 {keeps the balance.}) 28. Qb3 {[%emt 0:07:55]} d5 {[%emt 0:04:04] [#]} 29. Bg4 $1 {[%emt 0:02:24]} Kf7 {[%emt 0:01:58]} 30. f5 {[%emt 0:03:50]} (30. Ne2 $18) 30... e5 {[%emt 0:02:37] [#]} 31. Bf3 $1 {[%emt 0:02:45]} Bd6 {[%emt 0:02:11]} (31... Bd7 $142 32. exd5 Bd6) 32. exd5 {[%emt 0:00:23]} Bb7 {[%emt 0:00:00] [#]} 33. Be3 {[%emt 0:01:18]} (33. Ne4 $142 $1 Qf8 34. Be3) 33... Qd8 {[%emt 0:01:34]} (33... Ke7 {keeps fighting.} 34. Qd3 Qc8) 34. Ne4 {[%emt 0:01:19]} Ke7 {[%emt 0:00:24]} 35. Nc5 {[%emt 0:00:56]} Qc7 {[%emt 0:00:40]} 36. Nxa4 {[%emt 0:00:38]} bxa4 {[%emt 0:00:06]} 37. Qxa4 {[%emt 0:00:33]} Qc3 $18 {[%emt 0:00:30]} 38. Kf2 {[%emt 0:00:00]} Qb2+ {[%emt 0:00:35]} 39. Be2 {[%emt 0:00:00]} Qb1 {[%emt 0:00:15]} 40. g4 {[%emt 0:01:18]} Qh1 {[%emt 0:00:14]} 41. Bf3 {[%emt 0:00:19]} Qxh2+ {[%emt 0:00:46]} 42. Ke1 {[%emt 0:00:30]} Qg3+ {[%emt 0:00:30]} 43. Ke2 {[%emt 0:00:30]} e4 {[%emt 0:00:30]} 44. Bxe4 {[%emt 0:00:30]} Qxg4+ {[%emt 0:00:30]} 45. Kd3 {[%emt 0:00:30]} Qh3 {[%emt 0:00:30]} 46. Qd1 {[%emt 0:00:30]} Ba6+ {[%emt 0:00:30]} 47. Kd2 {[%emt 0:00:00]} Qh2+ {[%emt 0:00:12]} 48. Kc1 {[%emt 0:00:00]} Qa2 {[%emt 0:00:34]} 49. Qa4 {[%emt 0:00:38]} Qa1+ {[%emt 0:00:41]} 50. Kd2 {[%emt 0:00:21]} Qf1 {[%emt 0:00:37]} 51. Qb3 {[%emt 0:01:43]} Qe2+ {[%emt 0:00:37]} 52. Kc1 {[%emt 0:00:02]} Qe1+ {[%emt 0:00:17]} 53. Kc2 {[%emt 0:00:28]} Qe2+ {[%emt 0:00:14]} 54. Kb1 {[%emt 0:00:54]} Qe1+ {[%emt 0:00:51]} 55. Kc2 {[%emt 0:00:30]} Qe2+ {[%emt 0:00:06]} 1/2-1/2

[Event "Turkish Women-ch Arzum 2022"]
[Site "Ayvalik"]
[Date "2022.03.08"]
[Round "5.15"]
[White "Gur, Tuba"]
[Black "Zengin, Ovgu"]
[Result "0-1"]
[ECO "D05"]
[WhiteElo "1750"]
[BlackElo "1475"]
[Annotator "NA"]
[PlyCount "94"]
[EventDate "2022.03.04"]
[EventType "swiss"]
[EventCountry "TUR"]
[SourceTitle "playchess.com"]
[Source "ChessBase"]
[SourceQuality "1"]
[TimeControl "5400+30"]

1. d4 {[%emt 0:01:00]} d5 {[%emt 0:01:00]} 2. Nf3 {[%emt 0:00:00]} Nf6 {[%emt 0:00:30]} 3. e3 {[%emt 0:00:00]} e6 {[%emt 0:00:30]} 4. Bd3 {[%emt 0:00:00]} Be7 {[%emt 0:00:30]} 5. b3 {[%emt 0:00:00]} c5 {[%emt 0:02:30]} 6. Bb2 {[%emt 0:00:30]} b6 {[%emt 0:01:30]} 7. O-O {[%emt 0:00:30]} O-O {[%emt 0:02:30]} 8. Nbd2 {[%emt 0:00:30]} Ba6 {[%emt 0:00:30]} 9. c4 {[%emt 0:02:30]} Nc6 {[%emt 0:05:30]} 10. Ne5 {[%emt 0:06:30]} Nxe5 {[%emt 0:05:30]} 11. dxe5 {[%emt 0:00:00]} Nd7 {[%emt 0:02:30]} 12. Qc2 {[%emt 0:02:00]} h6 {[%emt 0:10:30]} 13. cxd5 {[%emt 0:00:30]} Bxd3 {[%emt 0:00:30]} 14. Qxd3 {[%emt 0:00:00]} exd5 {[%emt 0:02:30]} 15. Nf3 {[%emt 0:02:00]} c4 {[%emt 0:06:30]} 16. bxc4 {[%emt 0:00:30]} dxc4 {[%emt 0:00:30]} 17. Qxc4 {[%emt 0:00:00]} Rc8 {[%emt 0:01:30]} 18. Qg4 {[%emt 0:03:00]} Nc5 {[%emt 0:04:30]} 19. Nd4 {[%emt 0:02:30]} Kh8 {[%emt 0:11:30]} 20. Rfd1 {[%emt 0:11:30]} Qc7 {[%emt 0:03:30]} 21. Nf5 {[%emt 0:17:30]} Ne6 {[%emt 0:01:30]} 22. Rac1 {[%emt 0:00:30]} Qb7 {[%emt 0:00:30]} 23. Nd6 {[%emt 0:04:30]} Bxd6 {[%emt 0:01:30]} 24. exd6 {[%emt 0:00:00]} Rxc1 {[%emt 0:01:30]} 25. Rxc1 {[%emt 0:00:00]} Qd5 {[%emt 0:02:30]} 26. Rd1 {[%emt 0:06:30]} Qxa2 {[%emt 0:02:30]} 27. Be5 {[%emt 0:00:30]} Qc2 {[%emt 0:05:30]} 28. f4 {[%emt 0:03:30]} f6 {[%emt 0:03:30]} 29. Ba1 {[%emt 0:01:30]} Qb3 {[%emt 0:01:30]} 30. Qe2 {[%emt 0:11:30]} Nc5 {[%emt 0:01:19]} 31. Bd4 {[%emt 0:05:30]} Ne4 {[%emt 0:01:38]} 32. Ra1 {[%emt 0:01:30]} Nxd6 {[%emt 0:01:53]} 33. Rxa7 {[%emt 0:00:30]} Nb5 {[%emt 0:00:55]} 34. Rd7 {[%emt 0:00:32]} Rc8 {[%emt 0:03:45]} 35. Qg4 {[%emt 0:04:27]} Qb1+ {[%emt 0:06:52]} 36. Kf2 {[%emt 0:00:36]} Rg8 {[%emt 0:00:17]} 37. Bxb6 {[%emt 0:01:58]} Nc3 {[%emt 0:01:52]} 38. Qe6 {[%emt 0:03:55]} Qc2+ {[%emt 0:01:17]} 39. Kf3 {[%emt 0:02:36]} Qe2+ {[%emt 0:00:30]} 40. Kg3 {[%emt 0:00:02]} Qe1+ {[%emt 0:00:47]} 41. Kh3 {[%emt 0:00:39]} Ne2 {[%emt 0:00:38]} 42. Bc7 {[%emt 0:04:52]} Ng1+ {[%emt 0:01:03]} 43. Kg4 {[%emt 0:00:04]} Qe2+ {[%emt 0:00:37]} 44. Kg3 {[%emt 0:02:46]} h5 {[%emt 0:00:54]} 45. h4 {[%emt 0:01:25]} Qe1+ {[%emt 0:00:30]} 46. Kh2 {[%emt 0:00:30]} Ne2 {[%emt 0:00:30]} 47. f5 {[%emt 0:00:30]} Qxh4# {[%emt 0:00:50]} 0-1

[Event "Turkish Women-ch Arzum 2022"]
[Site "Ayvalik"]
[Date "2022.03.08"]
[Round "5.16"]
[White "Susin, Derya Defne"]
[Black "Incecik, Seyma Zeynep"]
[Result "0-1"]
[ECO "D43"]
[WhiteElo "1285"]
[BlackElo "1777"]
[Annotator "NA RC"]
[PlyCount "62"]
[EventDate "2022.03.04"]
[EventType "swiss"]
[EventCountry "TUR"]
[SourceTitle "playchess.com"]
[Source "ChessBase"]
[SourceQuality "1"]
[TimeControl "5400+30"]

1. d4 {[%emt 0:01:00]} d5 {[%emt 0:01:00]} 2. c4 {[%emt 0:00:30]} e6 {[%emt 0:00:30]} 3. Nc3 {[%emt 0:00:00]} Nf6 {[%emt 0:00:00]} 4. Nf3 {[%emt 0:00:00]} c6 {[%emt 0:00:00]} 5. Bf4 {[%emt 0:01:30]} dxc4 {[%emt 0:00:00]} 6. e3 {[%emt 0:06:30]} b5 {[%emt 0:01:00]} 7. Qc2 {[%emt 0:03:30]} Bb4 {[%emt 0:04:30]} 8. Be2 {[%emt 0:04:30]} Nd5 {[%emt 0:00:30]} 9. Bxb8 {[%emt 0:08:30]} Rxb8 {[%emt 0:00:30]} 10. O-O {[%emt 0:00:30]} Bb7 {[%emt 0:01:30]} 11. Ne5 {[%emt 0:03:30]} Bd6 {[%emt 0:01:30]} 12. e4 {[%emt 0:08:30]} Nb4 {[%emt 0:06:30]} 13. Qc1 {[%emt 0:02:30]} Qc7 {[%emt 0:08:30]} 14. f4 {[%emt 0:11:30]} f6 {[%emt 0:06:30]} 15. a3 {[%emt 0:11:30]} Na6 {[%emt 0:03:30]} 16. Ng4 {[%emt 0:03:30]} h5 {[%emt 0:04:30]} 17. Ne5 {[%emt 0:08:30]} fxe5 {[%emt 0:03:30]} 18. fxe5 {[%emt 0:00:00]} Bxe5 {[%emt 0:00:30]} 19. dxe5 {[%emt 0:01:00]} Qxe5 {[%emt 0:00:30]} 20. a4 {[%emt 0:01:30]} Nc5 {[%emt 0:07:30]} 21. Qe3 {[%emt 0:03:10]} Nd7 {[%emt 0:03:30]} 22. axb5 {[%emt 0:06:44]} cxb5 {[%emt 0:02:30]} 23. Rxa7 {[%emt 0:05:12]} Nf6 {[%emt 0:01:30]} 24. Re1 {[%emt 0:04:20]} O-O {[%emt 0:07:30]} 25. Ra5 {[%emt 0:01:20]} Nd5 {[%emt 0:04:30]} 26. Qc5 {[%emt 0:03:41]} Rfc8 {[%emt 0:09:30]} 27. Qxb5 {[%emt 0:00:29]} Qd4+ {[%emt 0:01:30]} 28. Kh1 {[%emt 0:00:23]} Nxc3 {[%emt 0:00:00]} 29. bxc3 {[%emt 0:00:30]} Qf2 {[%emt 0:00:00]} 30. Rb1 {[%emt 0:00:36]} Bxe4 {[%emt 0:00:30]} 31. Qxb8 {[%emt 0:00:11]} Qxg2# {[%emt 0:00:30]} 0-1

[Event "Turkish Women-ch Arzum 2022"]
[Site "Ayvalik"]
[Date "2022.03.08"]
[Round "5.17"]
[White "Akin, Duru"]
[Black "Tanir, Simay"]
[Result "1-0"]
[ECO "C03"]
[WhiteElo "1563"]
[BlackElo "1510"]
[Annotator "NA"]
[PlyCount "93"]
[EventDate "2022.03.04"]
[EventType "swiss"]
[EventCountry "TUR"]
[SourceTitle "playchess.com"]
[Source "ChessBase"]
[SourceQuality "1"]
[TimeControl "5400+30"]

1. e4 {[%emt 0:03:00]} e6 {[%emt 0:01:00]} 2. d4 {[%emt 0:00:30]} d5 {[%emt 0:00:30]} 3. Nd2 {[%emt 0:00:00]} Be7 {[%emt 0:00:00]} 4. Ngf3 {[%emt 0:01:00]} Nf6 {[%emt 0:02:00]} 5. e5 {[%emt 0:00:30]} Nfd7 {[%emt 0:00:00]} 6. Bd3 {[%emt 0:01:30]} c5 {[%emt 0:00:00]} 7. c3 {[%emt 0:00:00]} b6 {[%emt 0:01:30]} 8. Qe2 {[%emt 0:01:00]} a5 {[%emt 0:00:30]} 9. O-O {[%emt 0:02:30]} Ba6 {[%emt 0:01:30]} 10. c4 {[%emt 0:04:30]} Nc6 {[%emt 0:06:30]} 11. cxd5 {[%emt 0:04:30]} Bxd3 {[%emt 0:01:30]} 12. Qxd3 {[%emt 0:00:00]} exd5 {[%emt 0:16:30]} 13. e6 {[%emt 0:07:00]} fxe6 {[%emt 0:05:30]} 14. Qb5 {[%emt 0:04:30]} Qc7 {[%emt 0:09:30]} 15. Re1 {[%emt 0:02:30]} O-O {[%emt 0:12:30]} 16. Rxe6 {[%emt 0:02:30]} Bd6 {[%emt 0:00:30]} 17. Nf1 {[%emt 0:11:30]} Rae8 {[%emt 0:03:30]} 18. Rxe8 {[%emt 0:07:30]} Rxe8 {[%emt 0:00:30]} 19. Bg5 {[%emt 0:00:00]} Na7 {[%emt 0:09:30]} 20. Qd3 {[%emt 0:00:00]} cxd4 {[%emt 0:06:30]} 21. Qxd4 {[%emt 0:02:30]} Qc4 {[%emt 0:07:00]} 22. Qxc4 {[%emt 0:01:30]} dxc4 {[%emt 0:00:30]} 23. Rd1 {[%emt 0:00:00]} Re6 {[%emt 0:00:12]} 24. Ne3 {[%emt 0:00:00]} h6 {[%emt 0:04:26]} 25. Nxc4 {[%emt 0:00:30]} Nc8 {[%emt 0:00:52]} 26. Be3 {[%emt 0:07:30]} Kf7 {[%emt 0:04:06]} 27. Nd4 {[%emt 0:04:30]} Rf6 {[%emt 0:01:16]} 28. Nb5 {[%emt 0:00:00]} Ke7 {[%emt 0:00:18]} 29. Nc3 {[%emt 0:01:00]} Re6 {[%emt 0:02:19]} 30. Nd5+ {[%emt 0:06:30]} Kf7 {[%emt 0:00:07]} 31. Ndxb6 {[%emt 0:03:30]} Ndxb6 {[%emt 0:00:36]} 32. Bxb6 {[%emt 0:00:00]} Nxb6 {[%emt 0:00:24]} 33. Nxd6+ {[%emt 0:00:00]} Kf6 {[%emt 0:00:53]} 34. h3 {[%emt 0:02:30]} Re2 {[%emt 0:00:57]} 35. Nb5 {[%emt 0:01:30]} Nc4 {[%emt 0:00:36]} 36. b3 {[%emt 0:00:30]} Ne5 {[%emt 0:00:24]} 37. a4 {[%emt 0:04:09]} Rb2 {[%emt 0:00:34]} 38. Nd4 {[%emt 0:02:13]} g5 {[%emt 0:00:37]} 39. g4 {[%emt 0:01:10]} Nd7 {[%emt 0:02:22]} 40. Rc1 {[%emt 0:00:36]} Ne5 {[%emt 0:00:18]} 41. Rd1 {[%emt 0:03:16]} Nd7 {[%emt 0:00:35]} 42. Nc6 {[%emt 0:01:15]} Nc5 {[%emt 0:00:06]} 43. Nxa5 {[%emt 0:01:43]} Nxb3 {[%emt 0:00:05]} 44. Rd6+ {[%emt 0:00:03]} Kg7 {[%emt 0:01:10]} 45. Rb6 {[%emt 0:00:20]} Ra2 {[%emt 0:00:59]} 46. Nxb3 {[%emt 0:00:21]} Rxa4 {[%emt 0:00:18]} 47. Kg2 {[%emt 0:00:09]} 1-0

[Event "Turkish Women-ch Arzum 2022"]
[Site "Ayvalik"]
[Date "2022.03.08"]
[Round "5.18"]
[White "Yilmaz, Gokcen"]
[Black "Gulceken, Sumeyye"]
[Result "1-0"]
[ECO "B27"]
[WhiteElo "1647"]
[BlackElo "1591"]
[Annotator "NA RC"]
[PlyCount "63"]
[EventDate "2022.03.04"]
[EventType "swiss"]
[EventCountry "TUR"]
[SourceTitle "playchess.com"]
[Source "ChessBase"]
[SourceQuality "1"]
[TimeControl "5400+30"]

1. e4 {[%emt 0:01:00]} g6 {[%emt 0:01:00]} 2. d4 {[%emt 0:00:30]} Bg7 {[%emt 0:00:00]} 3. Nf3 {[%emt 0:00:00]} c5 {[%emt 0:00:00]} 4. Nc3 {[%emt 0:00:00]} d6 {[%emt 0:04:30]} 5. Be3 {[%emt 0:00:30]} Qa5 {[%emt 0:05:30]} 6. Qd2 {[%emt 0:03:30]} Bg4 {[%emt 0:02:30]} 7. Nd5 {[%emt 0:21:30]} Qxd2+ {[%emt 0:09:30]} 8. Bxd2 {[%emt 0:02:30]} Bxf3 {[%emt 0:03:30]} 9. gxf3 {[%emt 0:02:30]} Kd8 {[%emt 0:04:30]} 10. dxc5 {[%emt 0:02:30]} dxc5 {[%emt 0:00:30]} 11. O-O-O {[%emt 0:00:30]} Kc8 {[%emt 0:07:30]} 12. Bf4 {[%emt 0:05:30]} Nc6 {[%emt 0:07:30]} 13. Nc7 {[%emt 0:00:30]} e5 {[%emt 0:03:30]} 14. Nxa8 {[%emt 0:04:30]} exf4 {[%emt 0:01:30]} 15. Bh3+ {[%emt 0:00:30]} Kb8 {[%emt 0:00:30]} 16. Rd7 {[%emt 0:00:00]} Kxa8 {[%emt 0:00:30]} 17. Rxf7 {[%emt 0:01:00]} Be5 {[%emt 0:06:30]} 18. Rf8+ {[%emt 0:04:30]} Nb8 {[%emt 0:00:30]} 19. Re8 {[%emt 0:00:30]} Bg7 {[%emt 0:02:30]} 20. Rd1 {[%emt 0:03:30]} Nh6 {[%emt 0:02:30]} 21. Rxh8 {[%emt 0:01:30]} Bxh8 {[%emt 0:00:30]} 22. Rd8 {[%emt 0:00:00]} Bf6 {[%emt 0:03:30]} 23. Re8 {[%emt 0:01:00]} a5 {[%emt 0:01:30]} 24. e5 {[%emt 0:00:30]} Bg5 {[%emt 0:01:30]} 25. e6 {[%emt 0:00:00]} Ka7 {[%emt 0:00:30]} 26. e7 {[%emt 0:00:00]} Bxe7 {[%emt 0:01:30]} 27. Rxe7 {[%emt 0:00:30]} Nc6 {[%emt 0:01:30]} 28. Rxh7 {[%emt 0:00:00]} Ng8 {[%emt 0:00:30]} 29. Rg7 {[%emt 0:00:00]} Nge7 {[%emt 0:00:30]} 30. Bd7 {[%emt 0:00:30]} Nf5 {[%emt 0:02:30]} 31. Bxf5 {[%emt 0:00:30]} gxf5 {[%emt 0:00:00]} 32. h4 {[%emt 0:00:00]} 1-0